bitfinex/quotes_SOLUSD_20250601
["timestamp","ask_amount","ask_price","bid_price","bid_amount"]
[1748762258029,45.65370495,154.95,154.92,14.69963375]
[1748762258446,6.45370495,154.95,154.92,14.69963375]
[1748762259154,6.45344173,154.96,154.92,14.69963375]
[1748762260430,21.15307548,154.96,154.92,14.69963375]
[1748762260650,21.15307548,154.96,154.91,14.69963375]
[1748762260942,14.69963375,154.95,154.91,14.69963375]
[1748762261432,14.69963375,154.95,154.89,26.0]
[1748762261753,14.69963375,154.94,154.89,14.69963375]
[1748762262732,6.45452785,154.93,154.89,14.69963375]
[1748762263342,6.45452785,154.93,154.9,14.69963375]
[1748762265760,16.13319566,154.96,154.9,14.69963375]
[1748762265761,14.69963375,154.95,154.9,14.69963375]
[1748762267080,14.69963375,154.94,154.9,14.69963375]
[1748762268070,6.45452785,154.93,154.9,14.69963375]
[1748762271280,14.69963375,154.94,154.9,14.69963375]
[1748762271281,21.15391674,154.94,154.9,14.69963375]
[1748762271468,6.45428299,154.94,154.9,14.69963375]
[1748762272782,6.45383567,154.95,154.92,14.69963375]
[1748762273569,6.45383567,154.95,154.91,14.69963375]
[1748762274495,21.15307001,154.96,154.91,21.15498034]
[1748762274673,21.15307001,154.96,154.92,14.69963375]
[1748762275067,6.45343626,154.96,154.92,14.69963375]
[1748762276380,6.45343626,154.96,154.93,14.69963375]
[1748762279084,10.1,154.97,154.94,14.69963375]
[1748762280989,10.1,154.97,154.95,14.69963375]
[1748762281196,10.1,154.97,154.96,14.69963375]
[1748762281865,6.45164268,155.0,154.96,14.69963375]
[1748762282084,21.15127643,155.0,154.95,14.69963375]
[1748762285699,14.69963375,154.99,154.95,14.69963375]
[1748762286074,14.69963375,154.99,154.94,14.69963375]
[1748762286272,14.69963375,154.98,154.94,14.69963375]
[1748762286990,14.69963375,154.99,154.94,14.69963375]
[1748762287190,14.69963375,154.97,154.93,40.69963375]
[1748762287701,14.69963375,154.97,154.93,26.0]
[1748762287887,14.69963375,154.97,154.93,40.69963375]
[1748762288201,14.69963375,154.98,154.93,40.69963375]
[1748762288715,14.69963375,154.98,154.93,26.0]
[1748762288888,14.69963375,154.98,154.93,40.69963375]
[1748762289200,6.45286184,154.97,154.93,40.69963375]
[1748762290505,6.4516129,155.0,154.94,14.69963375]
[1748762290717,14.69963375,154.99,154.94,14.69963375]
[1748762291383,6.45244547,154.98,154.94,14.69963375]
[1748762293614,21.15179007,154.99,154.95,14.69963375]
[1748762295193,6.45215632,154.99,154.95,14.69963375]
[1748762296007,6.45171153,155.0,154.96,14.69963375]
[1748762296586,21.15134528,155.0,154.96,14.69963375]
[1748762296808,14.69963375,154.98,154.93,130.29963375]
[1748762297010,14.69963375,154.97,154.93,130.29963375]
[1748762297186,14.69963375,154.97,154.93,104.29963375]
[1748762297391,14.69963375,154.97,154.93,89.6]
[1748762297695,14.69963375,154.96,154.92,14.69963375]
[1748762298016,6.45369474,154.95,154.92,14.69963375]
[1748762299099,6.45369474,154.95,154.91,14.69963375]
[1748762299286,6.45369474,154.95,154.88,26.0]
[1748762299287,14.69963375,154.94,154.88,26.0]
[1748762299650,14.69963375,154.9,154.86,14.69963375]
[1748762299910,14.69963375,154.9,154.82,182.52]
[1748762299911,14.69963375,154.89,154.85,14.69963375]
[1748762300108,14.69963375,154.89,154.84,14.69963375]
[1748762300609,14.69963375,154.88,154.84,14.69963375]
[1748762301030,14.69963375,154.88,154.83,14.69963375]
[1748762301197,6.45702847,154.87,154.83,40.69963375]
[1748762302109,6.45702847,154.87,154.83,14.69963375]
[1748762302311,6.45702847,154.87,154.83,40.69963375]
[1748762303004,21.15666222,154.87,154.82,14.69963375]
[1748762303208,21.15666222,154.87,154.75,10.0]
[1748762303209,14.69963375,154.83,154.73,32.65918093]
[1748762303394,6.45786244,154.85,154.77,14.69963375]
[1748762303395,14.69963375,154.82,154.77,14.69963375]
[1748762304628,6.45953103,154.81,154.77,14.69963375]
[1748762304794,14.69963375,154.8,154.75,14.69963375]
[1748762305000,14.69963375,154.82,154.77,14.69963375]
[1748762305222,14.69963375,154.82,154.78,14.69963375]
[1748762306198,21.15833038,154.83,154.78,14.69963375]
[1748762306410,21.15833038,154.83,154.76,40.69963375]
[1748762306411,14.69963375,154.81,154.76,40.69963375]
[1748762306997,14.69963375,154.8,154.76,14.69963375]
[1748762308109,21.15985203,154.8,154.76,14.69963375]
[1748762308809,14.69963375,154.78,154.74,14.69963375]
[1748762309020,14.69963375,154.78,154.73,27.5883]
[1748762309200,14.69963375,154.78,154.73,42.28793375]
[1748762310320,6.46120049,154.77,154.73,42.28793375]
[1748762311722,14.69963375,154.76,154.72,14.69963375]
[1748762312324,21.1613812,154.76,154.72,14.69963375]
[1748762312517,14.69963375,154.76,154.72,14.69963375]
[1748762312721,21.16094481,154.77,154.72,14.69963375]
[1748762313323,14.69963375,154.76,154.71,32.46366912]
[1748762313531,21.16135885,154.76,154.72,26.0]
[1748762314237,39.2,154.79,154.74,14.69963375]
[1748762314406,53.89963375,154.79,154.74,14.69963375]
[1748762315126,6.46088392,154.78,154.74,14.69963375]
[1748762315833,21.16051767,154.78,154.72,32.46302386]
[1748762316029,21.16051767,154.78,154.74,14.69963375]
[1748762316927,14.69963375,154.77,154.73,14.69963375]
[1748762317137,14.69963375,154.76,154.72,40.69963375]
[1748762317313,14.69963375,154.77,154.72,40.69963375]
[1748762317718,14.69963375,154.77,154.73,14.69963375]
[1748762318806,21.16087268,154.77,154.73,14.69963375]
[1748762319727,21.16087268,154.77,154.72,26.0]
[1748762319918,21.16087268,154.77,154.72,40.69963375]
[1748762320320,21.1605579,154.78,154.73,14.69963375]
[1748762320733,60.4405579,154.78,154.73,14.69963375]
[1748762321538,14.69963375,154.77,154.73,14.69963375]
[1748762321926,14.69963375,154.76,154.72,40.69963375]
[1748762322816,6.46161798,154.76,154.72,40.69963375]
[1748762323011,21.16097144,154.77,154.73,14.69963375]
[1748762323437,6.46133769,154.77,154.73,14.69963375]
[1748762323633,6.46133769,154.77,154.72,32.46317825]
[1748762323834,6.46133769,154.77,154.73,14.69963375]
[1748762326449,14.69963375,154.79,154.75,14.69963375]
[1748762326751,10.06,154.81,154.73,6.46283784]
[1748762326752,39.26,154.8,154.77,14.69963375]
[1748762327845,70.49930801,154.81,154.77,14.69963375]
[1748762328026,70.49930801,154.81,154.76,14.69963375]
[1748762328443,31.21930801,154.81,154.76,14.69963375]
[1748762328649,70.47930801,154.81,154.76,14.69963375]
[1748762330055,14.69963375,154.8,154.75,14.69963375]
[1748762331248,53.95963375,154.8,154.75,14.69963375]
[1748762331746,6.46036565,154.79,154.75,14.69963375]
[1748762333159,14.69963375,154.78,154.74,8.1164]
[1748762333749,6.46120049,154.77,154.74,8.1164]
[1748762333947,6.46120049,154.77,154.74,22.81603375]
[1748762335462,6.46120049,154.77,154.74,16.35643375]
[1748762337950,14.69963375,154.78,154.74,16.35643375]
[1748762338852,6.46120049,154.77,154.74,1.6568]
[1748762340359,6.46120049,154.77,154.74,16.35643375]
[1748762340667,6.46120049,154.77,154.74,14.69963375]
[1748762342875,6.46078304,154.78,154.74,14.69963375]
[1748762343080,6.46039982,154.79,154.75,14.69963375]
[1748762343402,10.06,154.81,154.78,14.69963375]
[1748762343776,10.06,154.81,154.79,14.69963375]
[1748762344260,10.06,154.81,154.78,14.69963375]
[1748762344657,16.51956194,154.81,154.78,14.69963375]
[1748762345861,10.06,154.81,154.78,14.69963375]
[1748762348668,16.51957812,154.81,154.77,14.69963375]
[1748762348869,31.21921187,154.81,154.77,14.69963375]
[1748762350079,14.69963375,154.79,154.75,14.69963375]
[1748762350464,60.40036763,154.79,154.75,14.69963375]
[1748762350996,45.70073388,154.79,154.75,14.69963375]
[1748762351181,39.24,154.79,154.76,14.69963375]
[1748762351702,45.70039509,154.79,154.76,14.69963375]
[1748762352996,60.40002884,154.79,154.75,14.69963375]
[1748762353783,60.40002884,154.79,154.74,14.69963375]
[1748762354791,14.69963375,154.77,154.72,14.69963375]
[1748762355789,14.69963375,154.78,154.73,14.69963375]
[1748762356779,6.46120049,154.77,154.73,14.69963375]
[1748762357300,6.46094691,154.78,154.74,14.69963375]
[1748762357602,39.24,154.79,154.76,14.69963375]
[1748762357976,60.41975214,154.8,154.76,14.69963375]
[1748762359282,45.72011839,154.8,154.76,14.69963375]
[1748762360804,24.75963375,154.81,154.77,14.69963375]
[1748762360805,49.32,154.81,154.77,14.69963375]
[1748762361009,10.06,154.81,154.78,14.69963375]
[1748762363100,16.51955076,154.81,154.77,14.69963375]
[1748762366287,31.21918451,154.81,154.77,14.69963375]
[1748762368908,16.51955076,154.81,154.77,14.69963375]
[1748762369490,14.69963375,154.8,154.76,14.69963375]
[1748762369691,14.69963375,154.79,154.75,14.69963375]
[1748762370101,14.69963375,154.79,154.73,7.8175]
[1748762370292,14.69963375,154.79,154.75,14.69963375]
[1748762371114,14.69963375,154.78,154.74,14.69963375]
[1748762371295,14.69963375,154.78,154.73,16.27543375]
[1748762371611,53.91963375,154.78,154.73,16.27543375]
[1748762371994,14.69963375,154.77,154.73,1.5758]
[1748762372603,14.69963375,154.74,154.7,14.69963375]
[1748762373195,6.46283957,154.74,154.7,14.69963375]
[1748762376218,10.08,154.76,154.73,14.69963375]
[1748762376418,10.08,154.76,154.69,6.46454198]
[1748762376419,10.08,154.76,154.74,14.69963375]
[1748762380205,31.24128627,154.76,154.7,6.60628568]
[1748762380406,14.69963375,154.75,154.71,14.69963375]
[1748762380918,21.16208689,154.74,154.69,104.29963375]
[1748762381503,21.16208689,154.74,154.7,14.69963375]
[1748762384901,21.16208689,154.74,154.69,14.69963375]
[1748762385621,14.69963375,154.7,154.65,14.69963375]
[1748762385822,49.32,154.71,154.63,14.69963375]
[1748762386043,14.69963375,154.67,154.63,14.69963375]
[1748762386402,14.69963375,154.67,154.61,32.46774865]
[1748762386603,14.69963375,154.64,154.57,6.46956071]
[1748762386801,6.4665857,154.65,154.58,14.69963375]
[1748762386802,14.69963375,154.63,154.58,14.69963375]
[1748762387224,14.69963375,154.63,154.59,26.0]
[1748762387723,14.69963375,154.63,154.58,14.69963375]
[1748762387931,14.69963375,154.63,154.58,40.69963375]
[1748762388134,21.16683169,154.63,154.58,40.69963375]
[1748762388911,14.69963375,154.63,154.59,14.69963375]
[1748762390723,14.69963375,154.63,154.59,21.16831887]
[1748762390934,16.5460716,154.66,154.59,21.16831887]
[1748762391125,14.69963375,154.65,154.61,14.69963375]
[1748762391310,14.69963375,154.65,154.59,6.46868512]
[1748762391619,14.69963375,154.65,154.6,14.69963375]
[1748762391819,16.5460716,154.66,154.6,14.69963375]
[1748762391820,14.69963375,154.64,154.6,14.69963375]
[1748762392231,31.24570535,154.66,154.61,14.69963375]
[1748762392615,31.24570535,154.66,154.61,21.16750628]
[1748762393837,24.77963375,154.66,154.61,21.16750628]
[1748762394131,14.69963375,154.65,154.61,21.16750628]
[1748762394754,14.69963375,154.65,154.61,6.46787253]
[1748762395042,14.69963375,154.64,154.6,21.16788766]
[1748762396412,21.1658794,154.65,154.6,21.16788766]
[1748762396834,21.1658794,154.65,154.6,14.69963375]
[1748762397743,21.1658794,154.65,154.6,21.16786532]
[1748762398527,14.69963375,154.65,154.6,21.16786532]
[1748762399714,10.08,154.66,154.62,14.69963375]
[1748762399956,10.08,154.66,154.64,14.69963375]
[1748762400923,24.77963375,154.66,154.59,6.46872372]
[1748762401149,24.77963375,154.66,154.62,14.69963375]
[1748762401367,31.24543716,154.66,154.62,14.69963375]
[1748762401538,24.77963375,154.66,154.61,14.69963375]
[1748762401741,24.77963375,154.66,154.62,14.69963375]
[1748762401968,10.08,154.66,154.62,14.69963375]
[1748762402631,10.08,154.66,154.62,21.16708362]
[1748762404552,14.69963375,154.65,154.61,14.69963375]
[1748762404745,14.69963375,154.65,154.6,14.69963375]
[1748762405647,21.16605004,154.65,154.6,14.69963375]
[1748762406060,21.16605004,154.65,154.6,21.16791538]
[1748762406258,21.16605004,154.65,154.61,14.69963375]
[1748762406568,31.24552226,154.66,154.61,14.69963375]
[1748762406767,24.77963375,154.66,154.62,14.69963375]
[1748762407060,10.08,154.66,154.63,14.69963375]
[1748762407852,10.08,154.66,154.62,21.16704935]
[1748762408357,24.77963375,154.66,154.62,21.16704935]
[1748762409768,24.77963375,154.66,154.62,14.69963375]
[1748762409769,31.24552522,154.66,154.62,14.69963375]
[1748762410064,24.77963375,154.66,154.62,14.69963375]
[1748762410454,14.69963375,154.65,154.6,21.16755168]
[1748762411641,14.69963375,154.64,154.6,6.46791793]
[1748762411845,14.69963375,154.63,154.59,130.29963375]
[1748762412164,14.69963375,154.63,154.58,14.69963375]
[1748762412674,14.69963375,154.63,154.59,14.69963375]
[1748762413864,21.16678898,154.63,154.59,14.69963375]
[1748762414370,21.16678898,154.63,154.58,6.46913325]
[1748762414371,21.16678898,154.63,154.58,14.69963375]
[1748762414670,14.69963375,154.62,154.57,14.69963375]
[1748762415360,14.69963375,154.62,154.56,32.4699659]
[1748762415556,14.69963375,154.62,154.57,14.69963375]
[1748762415764,6.46788694,154.61,154.57,14.69963375]
[1748762416148,14.69963375,154.59,154.55,14.69963375]
[1748762416757,14.69963375,154.59,154.54,26.0]
[1748762416976,14.69963375,154.59,154.54,40.69963375]
[1748762417271,14.69963375,154.58,154.5,89.81234493]
[1748762417447,14.69963375,154.54,154.49,14.69963375]
[1748762417650,21.17071471,154.54,154.49,14.69963375]
[1748762418058,14.69963375,154.53,154.49,14.69963375]
[1748762418262,14.69963375,154.53,154.48,14.69963375]
[1748762418465,14.69963375,154.52,154.47,14.69963375]
[1748762419257,14.69963375,154.52,154.47,21.17334939]
[1748762419459,14.69963375,154.52,154.47,21.17316644]
[1748762420171,21.17123606,154.53,154.48,14.69963375]
[1748762420577,14.69963375,154.52,154.48,14.69963375]
[1748762420770,14.69963375,154.52,154.46,32.47408441]
[1748762420771,14.69963375,154.52,154.47,14.69963375]
[1748762421284,6.47160231,154.53,154.47,14.69963375]
[1748762421465,14.69963375,154.51,154.47,14.69963375]
[1748762421775,21.17184425,154.51,154.46,26.0]
[1748762421954,14.69963375,154.5,154.46,26.0]
[1748762423165,6.47291086,154.49,154.46,26.0]
[1748762425275,24.81963375,154.51,154.46,40.69963375]
[1748762425455,31.29185184,154.51,154.46,40.69963375]
[1748762428266,31.29185184,154.51,154.46,26.0]
[1748762428267,14.69963375,154.5,154.46,26.0]
[1748762428454,14.69963375,154.5,154.45,14.69963375]
[1748762428654,14.69963375,154.5,154.45,21.1741664]
[1748762429065,14.69963375,154.5,154.45,14.69963375]
[1748762430080,21.17234582,154.5,154.45,14.69963375]
[1748762430891,6.47271207,154.5,154.46,14.69963375]
[1748762433505,49.46,154.51,154.47,14.69963375]
[1748762433673,10.12,154.51,154.48,14.69963375]
[1748762434989,16.59210131,154.51,154.48,14.69963375]
[1748762435291,16.59210131,154.51,154.47,14.69963375]
[1748762437379,10.12,154.51,154.47,14.69963375]
[1748762437778,16.59208285,154.51,154.47,14.69963375]
[1748762439970,10.12,154.51,154.47,21.1733156]
[1748762440601,16.59214622,154.51,154.45,6.47458724]
[1748762440787,31.29177997,154.51,154.46,14.69963375]
[1748762441082,10.12,154.51,154.47,14.69963375]
[1748762441289,10.12,154.51,154.47,21.17331411]
[1748762442076,10.12,154.51,154.47,14.69963375]
[1748762443877,16.59207761,154.51,154.47,14.69963375]
[1748762444874,14.69963375,154.5,154.45,6.47448293]
[1748762445073,14.69963375,154.5,154.46,14.69963375]
[1748762445306,14.69963375,154.5,154.45,14.69963375]
[1748762445800,14.69963375,154.5,154.46,14.69963375]
[1748762446001,31.29171136,154.51,154.46,14.69963375]
[1748762450024,14.69963375,154.48,154.41,16.59612351]
[1748762450193,14.69963375,154.48,154.43,14.69963375]
[1748762450394,14.69963375,154.48,154.44,14.69963375]
[1748762451232,6.47374894,154.47,154.41,6.47612351]
[1748762451414,6.47374894,154.47,154.44,14.69963375]
[1748762452131,21.17338269,154.47,154.4,32.47654183]
[1748762452301,21.17338269,154.47,154.43,14.69963375]
[1748762453321,21.17296363,154.48,154.43,14.69963375]
[1748762456019,14.69963375,154.47,154.43,14.69963375]
[1748762457440,6.47416806,154.46,154.43,14.69963375]
[1748762460711,21.17348179,154.47,154.43,14.69963375]
[1748762460928,6.47384804,154.47,154.44,14.69963375]
[1748762461817,10.1,154.48,154.46,14.69963375]
[1748762462114,10.1,154.48,154.47,14.69963375]
[1748762464872,10.1,154.48,154.42,6.61800666]
[1748762465036,10.1,154.48,154.47,14.69963375]
[1748762465220,6.4724919,154.5,154.47,14.69963375]
[1748762466643,10.1,154.54,154.49,14.69963375]
[1748762466826,10.1,154.54,154.46,6.47412614]
[1748762466827,64.11963375,154.54,154.5,14.69963375]
[1748762467226,70.59045036,154.54,154.5,14.69963375]
[1748762469225,31.27045036,154.54,154.5,14.69963375]
[1748762470140,10.1,154.54,154.52,14.69963375]
[1748762470330,16.17368858,154.58,154.48,29.21284148]
[1748762470331,65.59368858,154.58,154.53,14.69963375]
[1748762470529,80.29332233,154.58,154.54,14.69963375]
[1748762470727,80.29332233,154.58,154.53,14.69963375]
[1748762470728,14.69963375,154.57,154.53,14.69963375]
[1748762471028,21.16919446,154.57,154.52,14.69963375]
[1748762472049,6.46956071,154.57,154.54,14.69963375]
[1748762472254,16.56928975,154.58,154.55,14.69963375]
[1748762472629,16.56928975,154.58,154.57,14.69963375]
[1748762472630,10.1,154.58,154.57,14.69963375]
[1748762472834,14.49909083,154.59,154.57,14.69963375]
[1748762473041,6.4687414,154.59,154.57,14.69963375]
[1748762474235,6.4683053,154.6,154.57,14.69963375]
[1748762477566,6.4683053,154.6,154.53,6.47091214]
[1748762477767,37.33870231,154.6,154.55,14.69963375]
[1748762478059,14.69963375,154.58,154.54,14.69963375]
[1748762478871,21.16919446,154.57,154.49,6.47281365]
[1748762479050,14.69963375,154.56,154.52,14.69963375]
[1748762479770,14.69963375,154.55,154.47,16.57359544]
[1748762479966,14.69963375,154.55,154.5,14.69963375]
[1748762480472,14.69963375,154.56,154.51,14.69963375]
[1748762481133,6.47039792,154.55,154.52,14.69963375]
[1748762481340,6.47012327,154.56,154.53,14.69963375]
[1748762481563,6.47012327,154.56,154.54,14.69963375]
[1748762485561,10.08,154.57,154.55,14.69963375]
[1748762485778,10.08,154.57,154.56,14.69963375]
[1748762486142,16.54956071,154.57,154.56,14.69963375]
[1748762487870,16.54956071,154.57,154.55,14.69963375]
[1748762488368,10.08,154.57,154.56,14.69963375]
[1748762488739,6.46928655,154.58,154.56,14.69963375]
[1748762490569,6.46872372,154.59,154.55,14.69963375]
[1748762490768,21.16835747,154.59,154.55,14.69963375]
[1748762491654,21.16835747,154.59,154.54,14.69963375]
[1748762492974,6.46872372,154.59,154.55,14.69963375]
[1748762493142,6.46872372,154.59,154.56,14.69963375]
[1748762494171,6.46872372,154.59,154.52,6.47136276]
[1748762494371,6.46872372,154.59,154.55,14.69963375]
[1748762498643,6.46872372,154.59,154.56,14.69963375]
[1748762500277,6.4683053,154.6,154.56,14.69963375]
[1748762500472,6.4683053,154.6,154.57,14.69963375]
[1748762501172,6.4683053,154.6,154.56,14.69963375]
[1748762501474,37.33870231,154.6,154.56,14.69963375]
[1748762502174,22.63906856,154.6,154.56,14.69963375]
[1748762508586,6.4683053,154.6,154.56,14.69963375]
[1748762508791,6.4683053,154.6,154.57,14.69963375]
[1748762508975,6.4683053,154.6,154.58,14.69963375]
[1748762510367,21.16793905,154.6,154.56,14.69963375]
[1748762511275,6.4683053,154.6,154.56,14.69963375]
[1748762511591,6.4683053,154.6,154.57,14.69963375]
[1748762513491,6.4683053,154.6,154.56,14.69963375]
[1748762514981,6.4683053,154.6,154.57,14.69963375]
[1748762520288,10.1,154.61,154.58,14.69963375]
[1748762520491,10.1,154.61,154.6,14.69963375]
[1748762520662,6.46742593,154.63,154.6,14.69963375]
[1748762520864,6.46742593,154.63,154.56,40.69963375]
[1748762520865,6.46742593,154.63,154.61,14.69963375]
[1748762522081,10.06,154.65,154.61,14.69963375]
[1748762522082,6.46663217,154.64,154.61,14.69963375]
[1748762522463,6.46663217,154.64,154.6,14.69963375]
[1748762524792,14.69963375,154.63,154.58,14.69963375]
[1748762525086,14.69963375,154.62,154.57,14.69963375]
[1748762525596,14.69963375,154.63,154.58,14.69963375]
[1748762525984,6.46746863,154.62,154.58,14.69963375]
[1748762526375,6.46746863,154.62,154.59,14.69963375]
[1748762526573,64.01963375,154.65,154.61,14.69963375]
[1748762526768,6.46664845,154.64,154.61,14.69963375]
[1748762527795,6.46664845,154.64,154.6,14.69963375]
[1748762530193,14.69963375,154.63,154.59,14.69963375]
[1748762530378,14.69963375,154.63,154.58,14.69963375]
[1748762531314,6.46746863,154.62,154.58,14.69963375]
[1748762534207,6.46746863,154.62,154.55,14.69963375]
[1748762534208,14.69963375,154.6,154.55,14.69963375]
[1748762534576,14.69963375,154.6,154.56,14.69963375]
[1748762534776,14.69963375,154.61,154.56,14.69963375]
[1748762534979,14.69963375,154.6,154.56,14.69963375]
[1748762535181,14.69963375,154.61,154.56,14.69963375]
[1748762535411,6.4683053,154.6,154.56,14.69963375]
[1748762536104,6.46796474,154.61,154.57,14.69963375]
[1748762536278,6.46796474,154.61,154.58,14.69963375]
[1748762536708,21.16725965,154.62,154.58,14.69963375]
[1748762537004,6.4676259,154.62,154.58,14.69963375]
[1748762537692,6.4676259,154.62,154.59,14.69963375]
[1748762538009,6.4676259,154.62,154.58,14.69963375]
[1748762539019,16.52633614,154.65,154.61,14.69963375]
[1748762539182,10.06,154.65,154.64,14.69963375]
[1748762539880,10.06,154.65,154.63,14.69963375]
[1748762540199,16.52633203,154.65,154.63,14.69963375]
[1748762540502,16.52633203,154.65,154.59,26.0]
[1748762540503,16.52633203,154.65,154.62,14.69963375]
[1748762542778,31.22596578,154.65,154.61,14.69963375]
[1748762542980,14.69963375,154.64,154.59,14.69963375]
[1748762543393,18.79181043,154.69,154.57,26.0]
[1748762543588,14.69963375,154.69,154.64,14.69963375]
[1748762543787,10.08,154.7,154.66,14.69963375]
[1748762544001,10.08,154.7,154.61,26.0]
[1748762544002,16.54427729,154.7,154.67,14.69963375]
[1748762544315,16.54427729,154.7,154.61,26.0]
[1748762544316,10.08,154.7,154.64,40.69963375]
[1748762544635,16.54260358,154.74,154.69,21.16411104]
[1748762544947,16.54260358,154.74,154.71,14.69963375]
[1748762545905,16.54260358,154.74,154.7,14.69963375]
[1748762548021,10.08,154.74,154.72,14.69963375]
[1748762548219,10.08,154.74,154.71,14.69963375]
[1748762548515,16.54245494,154.74,154.7,14.69963375]
[1748762551936,16.54245494,154.74,154.71,14.69963375]
[1748762554436,16.54245494,154.74,154.69,7.7831]
[1748762554437,31.24208869,154.74,154.69,22.48273375]
[1748762556238,16.54245494,154.74,154.7,14.69963375]
[1748762556443,31.24208869,154.74,154.7,14.69963375]
[1748762558046,31.24208869,154.74,154.69,7.7831]
[1748762558243,14.69963375,154.72,154.69,7.7831]
[1748762558541,14.69963375,154.72,154.69,1.6648]
[1748762558843,14.69963375,154.73,154.69,1.6648]
[1748762559019,16.54245494,154.74,154.69,1.6648]
[1748762559221,16.54245494,154.74,154.69,16.36443375]
[1748762559437,31.24208869,154.74,154.69,16.36443375]
[1748762560846,16.54245494,154.74,154.69,16.36443375]
[1748762561043,31.24208869,154.74,154.7,14.69963375]
[1748762564752,16.54245494,154.74,154.7,14.69963375]
[1748762565542,31.24208869,154.74,154.7,14.69963375]
[1748762566059,31.24208869,154.74,154.69,22.40093375]
[1748762566643,21.16208869,154.74,154.69,22.40093375]
[1748762567861,21.16208869,154.74,154.69,16.36443375]
[1748762570368,14.69963375,154.73,154.69,1.6648]
[1748762571168,21.16208869,154.74,154.69,16.36443375]
[1748762571469,6.46245494,154.74,154.69,22.82897059]
[1748762571767,6.46245494,154.74,154.7,14.69963375]
[1748762573470,31.24142505,154.76,154.71,14.69963375]
[1748762573963,14.69963375,154.75,154.71,14.69963375]
[1748762574669,31.24142505,154.76,154.71,21.16332843]
[1748762575463,24.77963375,154.76,154.72,21.16288089]
[1748762576055,31.24127857,154.76,154.72,14.69963375]
[1748762578265,31.24127857,154.76,154.71,21.16320724]
[1748762580659,24.77963375,154.76,154.71,21.16320724]
[1748762580974,24.77963375,154.76,154.72,14.69963375]
[1748762582075,31.24136135,154.76,154.72,14.69963375]
[1748762582274,31.24136135,154.76,154.71,21.16320724]
[1748762582878,31.24136135,154.76,154.72,14.69963375]
[1748762587178,24.77963375,154.76,154.72,21.16279831]
[1748762588377,30.85053793,154.8,154.72,21.16279831]
[1748762588378,6.45994832,154.8,154.74,14.69963375]
[1748762588587,21.15958207,154.8,154.75,14.69963375]
[1748762588882,15.86148585,154.8,154.75,9.40153753]
[1748762589456,6.45994832,154.8,154.75,15.86356871]
[1748762589662,15.86148585,154.8,154.75,15.86356871]
[1748762590006,10.08,154.81,154.77,9.40153753]
[1748762590653,10.08,154.81,154.77,14.6862959]
[1748762591470,16.53961614,154.81,154.77,14.6862959]
[1748762592484,31.22591204,154.81,154.76,14.6862959]
[1748762596696,16.53961614,154.81,154.77,14.6862959]
[1748762598301,6.45961614,154.81,154.77,14.6862959]
[1748762602305,21.14591204,154.81,154.75,14.68343312]
[1748762602616,14.6862959,154.78,154.74,14.6862959]
[1748762602814,14.6862959,154.77,154.73,89.6]
[1748762603016,14.6862959,154.77,154.72,40.6862959]
[1748762603178,10.06,154.8,154.71,14.68512011]
[1748762603179,14.6862959,154.75,154.71,8.2215]
[1748762603376,14.6862959,154.75,154.69,26.0]
[1748762603586,14.6862959,154.73,154.69,26.0]
[1748762604407,21.14940129,154.73,154.69,26.0]
[1748762605492,6.46310539,154.73,154.7,26.0]
[1748762606290,21.14940129,154.73,154.68,14.6862959]
[1748762608609,21.14940129,154.73,154.66,16.3175959]
[1748762608610,14.6862959,154.71,154.66,16.3175959]
[1748762608908,14.6862959,154.69,154.66,1.6313]
[1748762609121,14.6862959,154.69,154.64,14.6862959]
[1748762610806,6.46495991,154.68,154.64,14.6862959]
[1748762611113,21.15125581,154.68,154.63,40.6862959]
[1748762613214,6.46495991,154.68,154.64,14.6862959]
[1748762613513,6.46460693,154.69,154.65,14.6862959]
[1748762613712,53.9462959,154.71,154.66,14.6862959]
[1748762613894,53.9662959,154.72,154.68,14.6862959]
[1748762614783,60.42999141,154.72,154.68,14.6862959]
[1748762615319,60.42999141,154.72,154.67,14.6862959]
[1748762615494,60.42999141,154.72,154.68,14.6862959]
[1748762616912,21.14999141,154.72,154.67,14.6862959]
[1748762617610,14.6862959,154.71,154.67,14.6862959]
[1748762618420,14.6862959,154.7,154.65,21.15250993]
[1748762619720,21.15051084,154.7,154.65,21.15250993]
[1748762621023,21.15051084,154.7,154.66,14.6862959]
[1748762622598,21.15051084,154.7,154.65,14.6862959]
[1748762623413,6.46421494,154.7,154.66,14.6862959]
[1748762624805,6.46421494,154.7,154.63,122.06689498]
[1748762625011,21.15051084,154.7,154.66,14.6862959]
[1748762627928,14.6862959,154.67,154.63,26.0]
[1748762628133,14.6862959,154.67,154.63,40.6862959]
[1748762629104,14.6862959,154.67,154.63,26.0]
[1748762629927,21.15181413,154.67,154.63,40.6862959]
[1748762632721,6.46501894,154.68,154.64,20.9205959]
[1748762633118,14.6862959,154.69,154.65,14.6862959]
[1748762633320,24.7662959,154.7,154.65,14.6862959]
[1748762634153,31.23056455,154.7,154.65,14.6862959]
[1748762636032,14.6862959,154.69,154.65,14.6862959]